Cogmind - Beta 10.1 @@@ ROGUE MODE // 2020.10.27 @ 00:19:55 Player: The Scout Result: Destroyed by G-47 Trooper with Particle Gun Performance ------------- Evolutions (0) 0 Regions Visited (2) 400 Robots Destroyed (11) 55 Value Destroyed (156) 156 Prototype IDs (0) 0 Alien Tech Used (0) 0 Bonus (0) 0 TOTAL SCORE: 611 Bonus ------- None Cogmind --------- Core Integrity 0/250 Matter 300/300 Energy 40/100 System Corruption 0% Temperature Cool (9) Movement Core (250) Ox4 Location -10/Mines Parts ------- > --- POWER (1) -------- (None) > --- PROPULSION (2) --- (None) > --- UTILITY (2) ------ Small Storage Unit Field Recycling Unit > --- WEAPON (2) ------- Maul > --- INVENTORY (6) ---- Light Ion Engine Aluminum Leg Aluminum Leg Heavy EM Pulse Gun Heavy EM Pulse Gun Assault Rifle Peak State ------------ > --- POWER ------------ Ion Engine > --- PROPULSION ------- Light Treads Light Treads > --- UTILITY ---------- Small Storage Unit Field Recycling Unit > --- WEAPON ----------- Heavy EM Pulse Gun Maul > --- INVENTORY -------- Light Ion Engine Aluminum Leg Aluminum Leg Heavy EM Pulse Gun Maul [Rating: 10] Favorites ----------- Power Ion Engine Engine Ion Engine Propulsion Light Treads Treads Light Treads Utility Small Storage Unit Device Field Recycling Unit Storage Small Storage Unit Weapon Maul Energy Gun Heavy EM Pulse Gun Ballistic Gun Assault Rifle Impact Weapon Maul Build | -11 -10 -10 ------- Run | Scr Mat Min Slots Evolved . | . . . Power . | . . . Propulsion . | . . . Utility . | . . . Weapon . | . . . Parts Attached 13 | 6 7 . Power 1 | 1 . . Engine 1 | 1 . . Core . | . . . Reactor . | . . . Propulsion 4 | 2 2 . Treads 4 | 2 2 . Leg . | . . . Wheel . | . . . Hover . | . . . Flight . | . . . Utility 2 | 1 1 . Device 1 | . 1 . Storage 1 | 1 . . Processor . | . . . Hackware . | . . . Protection . | . . . Artifact . | . . . Weapon 6 | 2 4 . Energy Gun 1 | . 1 . Energy Cannon . | . . . Ballistic Gun 2 | 2 . . Ballistic Cannon . | . . . Launcher . | . . . Special Weapon . | . . . Impact Weapon 3 | . 3 . Slashing Weapon . | . . . Piercing Weapon . | . . . Special Melee Weapon . | . . . Unidentified Prototypes . | . . . Parts Lost 3 | . 1 2 Power 1 | . 1 . Propulsion 1 | . . 1 Utility . | . . . Weapon 1 | . . 1 Highest Loss Streak 2 | . 1 2 Average Slot Usage (%) 78 | . 82 68 Engine 7 | . 10 . Treads 19 | . 21 11 Device 9 | . 8 14 Storage 14 | . 14 14 Ballistic Gun 8 | . 11 . Impact Weapon 18 | . 14 28 Naked Turns . | . . . Heaviest Build 23 | 12 23 18 Greatest Support 40 | 40 40 20 Greatest Overweight (x) 6 | . 6 5 Average Overweight (x) . | . . . Largest Inventory Capacity 6 | 6 6 6 Average Capacity 5 | 5 6 6 Most Carried 6 | 4 6 6 Average Carried 4 | 2 5 6 Final Capacity 6 | 6 6 6 Final Carried 6 | 3 6 6 Class Distribution -------------------- 100% | Mutant Dominant Class ---------------- Mutant | -10/Materials Mutant | -10/Mines Resources | -11 -10 -10 ----------- Run | Scr Mat Min Matter Collected 364 | 241 123 . Remotely . | . . . Salvage Created 335 | . 193 142 Parts 14 | . 5 9 Haulers Intercepted . | . . . Recyclers Shooed 1 | . . 1 Parts Field Recycled 17 | . 17 . Retrieved Matter 100 | . 100 . Parts Self-Destructed . | . . . Prevented . | . . . Kills | -11 -10 -10 ------- Run | Scr Mat Min Combat Hostiles Destroyed 8 | . 4 4 Melee 4 | . . 4 Guns 3 | . 3 . Classes Destroyed 4 | . 4 . Recycler 2 | . 1 1 Watcher 1 | . 1 . Swarmer 6 | . 3 3 Grunt 2 | . 1 1 Best Kill Streak 3 | . 3 3 Combat Bots Only 3 | . 3 3 Max Kills in Single Turn 1 | . 1 1 Gunslinging . | . . . Exploded . | . . . Melee 1 | . . 1 Uniques/NPCs Destroyed . | . . . Combat | -11 -10 -10 -------- Run | Scr Mat Min Damage Taken 693 | . 261 432 Core 257 | . 35 222 Absorbed by Shields . | . . . Core Remaining (%) 100 | 100 . . Volleys Fired 13 | . 13 . Largest 2 | . 2 . Hottest 40 | . 40 . Shots Fired 26 | . 26 . Gun 26 | . 26 . Cannon . | . . . Launcher . | . . . Special . | . . . Kinetic 26 | . 26 . Thermal . | . . . Explosive . | . . . Electromagnetic . | . . . Robot Hit Streak 2 | . 2 . Robot Miss Streak 3 | . 3 . Penetration Max . | . . . Secondary Targets . | . . . Shots Hit Robots 30 | . 17 13 Core Hits 7 | . 3 4 Critical Hits . | . . . Critical Kills . | . . . Critical Parts Destroyed . | . . . Melee Attacks 22 | . 6 16 Impact 22 | . 6 16 Slashing . | . . . Piercing . | . . . Sneak Attacks 1 | . . 1 Combat Hostiles . | . . . Follow-up Attacks 4 | . 1 3 Damage Inflicted 605 | . 234 371 Guns 102 | . 102 . Cannons . | . . . Explosions . | . . . Melee 497 | . 126 371 Ramming 6 | . 6 . Kinetic 102 | . 102 . Thermal . | . . . Explosive . | . . . Electromagnetic . | . . . Impact 497 | . 126 371 Slashing . | . . . Piercing . | . . . Highest Corruption . | . . . Average Corruption . | . . . Corruption Purged . | . . . Overload Shots . | . . . Overflow Damage 70 | . 29 41 Projectiles . | . . . Explosions . | . . . Melee 70 | . 29 41 Knockbacks 7 | . 4 3 Impact 7 | . 4 3 Kinetic . | . . . Secondary . | . . . Self-Inflicted Damage . | . . . Shots . | . . . Rammed 2 | . 2 . Targets Rammed 3 | . 3 . Kicked . | . . . Crushed 1 | . 1 . Highest Temperature . | . . . Average Temperature . | . . . Received Heat Transfer 222 | . 42 180 Siege Activations . | . . . Robots Corrupted . | . . . Combat Hostiles . | . . . Parts Fried 3 | . 2 1 Impact Corruptions 4 | . 2 2 Robots Melted . | . . . Combat Hostiles . | . . . Parts Melted . | . . . Heat Transferred . | . . . Parts Sabotaged . | . . . Parts Stolen . | . . . Parts Stripped . | . . . Power Chain Reactions . | . . . Missiles Intercepted . | . . . Alert | -11 -10 -10 ------- Run | Scr Mat Min Peak Influence 117 | . 117 100 Initial . | . . . Average 62 | . 74 81 Maximum Alert Level . | . . . Low Security (%) 100 | 100 100 100 Level 1 . | . . . Level 2 . | . . . Level 3 . | . . . Level 4 . | . . . Level 5 . | . . . High Security . | . . . Max Security . | . . . Squads Dispatched 2 | . 2 . Investigation . | . . . Extermination . | . . . Reinforcement 2 | . 2 . Assault . | . . . Garrison . | . . . Intercept . | . . . Construction Impeded . | . . . Haulers Reinforced . | . . . Stealth | -11 -10 -10 --------- Run | Scr Mat Min Distress Signals . | . . . Communications Jammed . | . . . Distress Signals . | . . . Times Spotted 17 | . 10 7 Peak Tracking Total 3 | . 3 3 Tactical Retreats . | . . . Traps | -11 -10 -10 ------- Run | Scr Mat Min Traps Triggered 2 | . 2 . Indirectly . | . . . Trap Hack Attempts . | . . . Triggered . | . . . Disarmed . | . . . Reprogrammed . | . . . Reused . | . . . Traps Extracted . | . . . Installed . | . . . Triggered . | . . . Machines | -11 -10 -10 ---------- Run | Scr Mat Min Machines Disabled . | . . . Max in Single Turn . | . . . Machines Sabotaged . | . . . Garrisons Compromised . | . . . Overloaded Fab Kills . | . . . Fab Network Shutdowns . | . . . Hacking | -11 -10 -10 --------- Run | Scr Mat Min Machines Accessed . | . . . Terminals . | . . . Fabricators . | . . . Repair Stations . | . . . Recycling Units . | . . . Scanalyzers . | . . . Garrison Access . | . . . Total Hacks . | . . . Successful . | . . . Failed . | . . . Catastrophic . | . . . Database Lockouts . | . . . Manual . | . . . Terminals . | . . . Fabricators . | . . . Repair Stations . | . . . Recycling Units . | . . . Scanalyzers . | . . . Garrison Access . | . . . Terminal Hacks . | . . . Fabricator Hacks . | . . . Repair Station Hacks . | . . . Recycling Unit Hacks . | . . . Scanalyzer . | . . . Garrison Access Hacks . | . . . Unauthorized Hacks . | . . . Terminals . | . . . Fabricators . | . . . Repair Stations . | . . . Recycling Units . | . . . Scanalyzers . | . . . Garrison Access . | . . . Data Cores Recovered . | . . . Used . | . . . Hacking Detections . | . . . Full Trace Events . | . . . Feedback Events . | . . . Feedback Blocked . | . . . Robot Schematics Acquired . | . . . Robots Built . | . . . Matter . | . . . Time . | . . . Total Robot Build Rating . | . . . Part Schematics Acquired . | . . . Parts Built . | . . . Matter . | . . . Time . | . . . Total Part Build Rating . | . . . Parts Repaired . | . . . Time . | . . . Parts Recycled . | . . . Recycled Matter . | . . . Retrieved Matter . | . . . Retrieved Components . | . . . Parts Scanalyzed . | . . . Part Schematics Acquired . | . . . Parts Damaged . | . . . Bothacking | -11 -10 -10 ------------ Run | Scr Mat Min Used RIF Installer . | . . . Robots Hacked . | . . . Non-combat . | . . . Combat . | . . . Robot Hacks Applied . | . . . Relay Couplers Released . | . . . Robots Rewired . | . . . Allies Hacked . | . . . Hacks Repelled . | . . . Allies | -11 -10 -10 -------- Run | Scr Mat Min Total Allies . | . . . Largest Group . | . . . Highest-Rated Group . | . . . Highest-Rated Ally . | . . . Total Orders . | . . . Ally Attacks . | . . . Total Damage . | . . . Kills . | . . . Allies Corrupted . | . . . Allies Melted . | . . . Intel | -11 -10 -10 ------- Run | Scr Mat Min Robot Analysis Total . | . . . Derelict Logs Recovered . | . . . Drone Launches . | . . . Drone Recoveries . | . . . Exploration | -11 -10 -10 ------------- Run | Scr Mat Min Turns Passed 686 | 126 412 148 Spaces Moved 330 | 70 194 66 Core 18 | 11 3 4 Treads 312 | 59 191 62 Legs . | . . . Wheels . | . . . Hover . | . . . Flight . | . . . Fastest Speed 50 | 50 160 160 Average Speed 160 | 142 164 168 Slowest Speed 350 | 160 350 300 Overloaded Moves . | . . . Propulsion Burnouts . | . . . Robots Hopped . | . . . Cave-ins Triggered . | . . . Exploration Rate (%) 15 | 5 24 18 Regions Visited 2 Branch Regions 1 Pre-discovered Areas . | . . . Known Exits Taken . | . . . Unknown Exits Taken 2 | 1 1 . Scrap Searched . | . . . Spaces Dug . | . . . Terrain Destroyed . | . . . Melee . | . . . Projectile . | . . . AOE . | . . . Terrain Rammed . | . . . Walls Destroyed . | . . . Machines Disabled . | . . . Actions | -11 -10 -10 --------- Run | Scr Mat Min Total 430 | 97 255 78 Wait 28 | 11 17 . Move 328 | 69 193 66 Hop . | . . . Pick Up 22 | 10 12 . Fast Attach . | . . . Attach 13 | 6 7 . Detach . | . . . Swap . | . . . Drop 6 | 1 5 . Fire 13 | . 13 . Melee 17 | . 5 12 Ram . | . . . Kick . | . . . Crush 3 | . 3 . Escape Stasis . | . . . Rewire . | . . . Trap . | . . . Miscellaneous . | . . . Route ------- -11/Scrapyard -10/Materials -10/Mines History --------- Turn | Location | Event 6 | -11/Scrapyard | Discovered new exit (range 14) 127 | -11/Scrapyard | Entered Materials 324 | -10/Materials | Build established: Mutant 425 | -10/Materials | Discovered new exit (range 14) 539 | -10/Materials | Entered Mines 550 | -10/Mines | Met a Derelict bent on vengeance 665 | -10/Mines | Core integrity fell below 50% 675 | -10/Mines | Core integrity fell below 20% 687 | -10/Mines | Destroyed by G-47 Trooper with Particle Gun Last Messages --------------- 00547_ Maul follow-up attack on S-10 Pest. 00547_ S-10 Pest destroyed. 00552_ Destroyed Flight Unit. 00552_ S-10 Pest system corrupted by crushing effect. 00560_ S-10 Pest destroyed. 00593_ R-06 Scavenger collects Flight Unit. 00608_ Sneak attack on R-06 Scavenger. 00608_ Destroyed Com. Wheel. 00608_ R-06 Scavenger system corrupted by crushing effect. 00608_ R-06 Scavenger knocked back. 00609_ R-06 Scavenger system terminally corrupted. 00609_ Lgt. Ion Engine fried. 00618_ K-01 Serf collects debris. 00657_ Lgt. Treads destroyed. 00663_ G-34 Mercenary knocked back. 00666_ G-47 Trooper knocked back. 00675_ Maul follow-up attack on G-34 Mercenary. 00679_ G-34 Mercenary destroyed. 00682_ Maul follow-up attack on G-47 Trooper. 00685_ Maul destroyed. Map ----- +----------------------------------------------------+ | ?????????????????????????????????? | | ?????????????????????????????????? | | ?????????????????????????????????? | | ?????????????????????????????????? | | ?????????????????????????????????? | | ?????????????????????????????????? | | ?????????????????????????????????? | | ?????????????????????????????????? | | ?????????????????????????????????? | | ?????????????????????????????????? | | ???????? ??????????????????????? | | ???????? ??????????????????????? | | ???????? ??????????????????????? | | ???????? ??????????????????????? | | ???????? ??????????????????????? | | ???????? ??????????????????????? | | ???????? ??????????????????????? | | ???????? ??????????????????????? | | ???????? ??????????????????????? | | ????????# #??????????????????????? | | ????????# #??????????????????????? | | ??????### #??????????????????????? | | ??????? #??????????????????????? | | ???????## ##?????????????????????? | | ???????#ggg######????????????????? | | ???????#%@ ## ##???????????????? | | ???????#[* #???????????????? | | ???????##### ##??????????????? | | ???????????## ###????????????? | | ????????????## ##??##???????? | | ?????????????# ### ###### | | ?????????????# | | ?????????????## ## ##?????? | | ??????????????###### ##??????? | | ???????????????????# #???????? | | ???????????????????## ##???????? | | ?###########????????# ###????????? | | ?# #????????# ##?????????? | | ?# #???????## ##????????? | | ?# ######### #????????? | | ?#%= # #????????? | | ?# % #????????? | | ?# ##### ##????????? | | ?# % % #???# ##?????????? | | ?# """ """ #???## ####??????????? | | ?# """ """ #????####?????????????? | | ?# """ """ #?????????????????????? | | ?# #?????????????????????? | | ?###########?????????????????????? | | ?????????????????????????????????? | +----------------------------------------------------+ Best States ------------- Heat Dissipation 25 Energy Generation 10 Energy Capacity 250 Matter Stores 300 Matter Capacity 300 Sight Range 16 Terrain Scan Density 10 Evasion (%) 40 Recoil Reduction 2 Item Schematics ----------------- None Robot Schematics ------------------ None Fabricated ------------ Nothing Alien Tech Used ----------------- None Achievements -------------- None Challenges ------------ None Game ------ Seed InsulatedHeatBroadsword Manual? 0 Play Time 00:11:05 Cumulative 1.5 hours Start 2020.10.26 @ 23:38:50 End 2020.10.27 @ 00:19:55 Sessions 1 Manual Loads 0 Difficulty Rogue Special Mode None Game No. 4 Rogue 4 Adventurer 0 Explorer 0 Win Type - Total 0 Types 0/0/0/0/0/0/0/0/0 Lore% 1 Gallery% 3 Achievement% 3 Wizard Run 0 Options --------- ASCII 0 Keyboard 0 Movement Numpad Keybinds 0 Fullscreen 2 Font 24/Cog Map View 76x50 Tactical HUD 1 Map Filters NONE Filters NONE Steam 1 RUN: 7cf49778-d9fb-422f-ab79-08d81780b71b